fUST/lending_fUST_20250607
["ID","MTS","AMOUNT","RATE_DAILY","PERIOD"]
[364844893,1749271846320,-168.11077846,0.00020078,2]
[364844895,1749271846329,-380.0,0.0002014,2]
[364844897,1749271846339,-513.46,0.0002014,2]
[364844899,1749271846349,-440.0,0.0002014,2]
[364844901,1749271846359,-440.0,0.0002014,2]
[364844903,1749271846369,-552.2577232,0.00020141,2]
[364844905,1749271846379,-499.57,0.00020141,2]
[364844907,1749271846389,-440.0,0.00020142,2]
[364844910,1749271846401,-74.97336905,0.00020142,2]
[364846027,1749272428511,165.222511,0.00013699,2]
[364846046,1749272832127,-7072.15882969,0.00018606,2]
[364846047,1749272832157,-902.19498691,0.00018606,2]
[364846048,1749272832179,-1015.0,0.00018899,2]
[364846049,1749272832200,-150.0,0.000189,2]
[364846050,1749272832223,-300.0,0.00019174,2]
[364846051,1749272832246,-300.0,0.00019175,2]
[364846052,1749272832268,-300.0,0.00019176,2]
[364846053,1749272832290,-300.0,0.00019176,2]
[364846054,1749272832313,-300.0,0.00019176,2]
[364846055,1749272832334,-300.0,0.00019176,2]
[364846056,1749272832357,-440.0,0.0001932,2]
[364846057,1749272832381,-440.0,0.0001932,2]
[364846058,1749272832404,-440.0,0.0001932,2]
[364846059,1749272832426,-440.0,0.0001932,2]
[364846060,1749272832448,-440.0,0.0001932,2]
[364846061,1749272832469,-440.0,0.0001932,2]
[364846062,1749272832492,-165.94748894,0.0001932,2]
[364846087,1749273032254,-3545.18057786,0.000193,3]
[364846088,1749273032264,-300.0,0.00019319,2]
[364846089,1749273032275,-274.05251106,0.0001932,2]
[364846090,1749273032284,-430.0,0.0001932,2]
[364846091,1749273032294,-440.0,0.0001932,2]
[364846092,1749273032304,-440.0,0.0001932,2]
[364846093,1749273032314,-440.0,0.0001932,2]
[364846094,1749273032323,-430.0,0.0001932,2]
[364846095,1749273032333,-440.0,0.0001932,2]
[364846096,1749273032342,-440.70948469,0.0001932,2]
[364846097,1749273032351,-250.7541781,0.00019356,2]
[364846099,1749273032361,-440.0,0.00019591,2]
[364846101,1749273032370,-440.0,0.00019591,2]
[364846103,1749273032380,-440.0,0.00019591,2]
[364846105,1749273032391,-440.0,0.00019591,2]
[364846107,1749273032401,-440.0,0.00019591,2]
[364846110,1749273032411,-500.0,0.00019592,2]
[364846112,1749273032420,-440.0,0.00019592,2]
[364846114,1749273032430,-440.0,0.00019592,2]
[364846116,1749273032440,-500.0,0.00019592,2]
[364846117,1749273032449,-473.79,0.00019592,2]
[364846118,1749273032459,-440.0,0.00019592,2]
[364846119,1749273032469,-440.0,0.00019593,2]
[364846120,1749273032479,-440.0,0.00019593,2]
[364846121,1749273032490,-440.0,0.00019593,2]
[364846122,1749273032500,-235.32988689,0.00019593,2]
[364846124,1749273032510,-504.28,0.00019593,2]
[364846126,1749273032519,-440.0,0.00019593,2]
[364846128,1749273032529,-246.25047442,0.00019593,2]
[364846173,1749273038028,-193.74952558,0.00019593,2]
[364846175,1749273038038,-440.0,0.00019593,2]
[364846177,1749273038048,-440.0,0.00019593,2]
[364846179,1749273038058,-440.0,0.00019593,2]
[364846180,1749273038067,-441.27775103,0.00019593,2]
[364846182,1749273038077,-440.0,0.00019593,2]
[364846183,1749273038087,-440.0,0.00019593,2]
[364846184,1749273038097,-440.0,0.00019593,2]
[364846186,1749273038106,-440.0,0.00019593,2]
[364846187,1749273038117,-440.0,0.00019593,2]
[364846188,1749273038129,-440.0,0.00019593,2]
[364846189,1749273038139,-440.0,0.00019593,2]
[364846190,1749273038150,-440.0,0.00019593,2]
[364846191,1749273038160,-306.84272339,0.00019593,2]
[364846192,1749273038172,-133.15727661,0.00019593,2]
[364846193,1749273038182,-240.0,0.00019594,2]
[364846194,1749273038193,-440.0,0.00019594,2]
[364846195,1749273038204,-440.0,0.00019594,2]
[364846196,1749273038214,-358.81,0.000197,14]
[364846197,1749273038224,-239.49870347,0.00019864,2]
[364846198,1749273038235,-159.34971604,0.00019864,2]
[364846199,1749273038245,-440.0,0.00019865,2]
[364846201,1749273038254,-440.0,0.00019865,2]
[364846202,1749273038264,-440.0,0.00019865,2]
[364846203,1749273038274,-440.0,0.00019865,2]
[364846204,1749273038284,-440.0,0.00019865,2]
[364846205,1749273038294,-440.0,0.00019866,2]
[364846206,1749273038304,-440.0,0.00019866,2]
[364846207,1749273038313,-440.0,0.00019866,2]
[364846208,1749273038323,-312.69388411,0.00019866,2]
[364846375,1749273043169,-440.0,0.00019593,2]
[364846376,1749273043180,-276.5618136,0.00019593,2]
[364846381,1749273046174,-223.4381864,0.00019593,2]
[364846382,1749273046184,-500.0,0.00019593,2]
[364846383,1749273046194,-127.30611589,0.00019866,2]
[364846384,1749273046204,-440.0,0.00019866,2]
[364846385,1749273046214,-440.0,0.00019866,2]
[364846386,1749273046224,-440.0,0.00019866,2]
[364846387,1749273046234,-440.0,0.00019866,2]
[364846388,1749273046244,-491.71,0.00019866,2]
[364846389,1749273046254,-473.79,0.00019866,2]
[364846390,1749273046263,-440.0,0.00019866,2]
[364846391,1749273046273,-440.0,0.00019866,2]
[364846392,1749273046283,-440.0,0.00019867,2]
[364846393,1749273046294,-36.35986158,0.00019867,2]
[364846394,1749273046306,-403.64013842,0.00019867,2]
[364846395,1749273046316,-109.14142462,0.00019867,2]
[364846396,1749273046329,-330.85857538,0.00019867,2]
[364846397,1749273046339,-504.28,0.00019867,2]
[364846398,1749273046348,-440.0,0.00019867,2]
[364846399,1749273046358,-440.0,0.00019867,2]
[364846400,1749273046368,-459.72,0.00019867,2]
[364846401,1749273046378,-440.0,0.00019867,2]
[364846402,1749273046388,-440.0,0.00019867,2]
[364846403,1749273046397,-440.0,0.00019867,2]
[364846404,1749273046407,-440.0,0.00019867,2]
[364846405,1749273046416,-440.0,0.00019867,2]
[364846406,1749273046427,-440.0,0.00019867,2]
[364846407,1749273046436,-440.0,0.00019867,2]
[364846408,1749273046446,-440.0,0.00019867,2]
[364846409,1749273046455,-440.0,0.00019868,2]
[364846410,1749273046465,-503.8272404,0.000199,2]
[364846411,1749273046475,-358.81,0.0002,14]
[364846413,1749273046484,-500.0,0.00020052,2]
[364846414,1749273046496,-503.82724018,0.00020072,2]
[364846415,1749273046506,-440.0,0.00020139,2]
[364846416,1749273046516,-440.0,0.00020139,2]
[364846417,1749273046527,-440.0,0.00020139,2]
[364846418,1749273046536,-440.0,0.00020139,2]
[364846419,1749273046547,-500.0,0.00020139,2]
[364846420,1749273046557,-440.0,0.0002014,2]
[364846421,1749273046567,-549.99922018,0.0002014,2]
[364846422,1749273046576,-440.0,0.0002014,2]
[364846423,1749273046586,-440.0,0.0002014,2]
[364846424,1749273046597,-420.0,0.0002014,2]
[364846425,1749273046607,-440.0,0.0002014,2]
[364846426,1749273046617,-440.0,0.0002014,2]
[364846427,1749273046627,-491.71,0.0002014,2]
[364846428,1749273046636,-473.79,0.0002014,2]
[364846429,1749273046645,-440.0,0.0002014,2]
[364846430,1749273046655,-209.01,0.00020141,2]
[364846431,1749273046666,-440.0,0.00020141,2]
[364846432,1749273046676,-504.28,0.00020141,2]
[364846433,1749273046686,-440.0,0.00020141,2]
[364846434,1749273046695,-440.0,0.00020141,2]
[364846435,1749273046705,-440.0,0.00020141,2]
[364846436,1749273046715,-296.01140741,0.00020141,2]
[364846437,1749273046724,-440.0,0.00020141,2]
[364846438,1749273046734,-155.0,0.00020142,2]
[364846439,1749273046745,-2985.32,0.00020158,2]
[364846440,1749273046755,-834.52263295,0.00020161,2]
[364846441,1749273046765,-229.56495552,0.00020161,2]
[364846442,1749273046774,-160.0,0.00020161,2]
[364846443,1749273046784,-156.414,0.00020161,2]
[364846444,1749273046794,-213.01382694,0.00020161,2]
[364846445,1749273046804,-160.0,0.00020161,2]
[364846446,1749273046814,-165.222511,0.00020187,2]
[364846447,1749273046824,-358.81,0.000202,14]
[364846448,1749273046834,-503.82724018,0.00020245,2]
[364846449,1749273046844,-440.0,0.00020413,2]
[364846450,1749273046854,-131.57686304,0.00020413,2]
[364846462,1749273303176,354.0,0.0001925,120]
[364846467,1749273811186,163.174386,0.00013699,2]
[364846471,1749273908919,157.47437542,0.00013699,2]
[364846513,1749274035129,-6244.80452405,0.00018805,2]
[364846519,1749274053122,-2924.38949865,0.00018805,2]
[364846520,1749274053146,-201.249067,0.00019001,2]
[364846521,1749274053170,-158.689502,0.00019178,2]
[364846522,1749274053194,-300.0,0.00019445,2]
[364846523,1749274053217,-300.0,0.00019446,2]
[364846524,1749274053243,-3028.03004294,0.00019448,2]
[364846683,1749274238194,-1903.2098876,0.00018812,2]
[364846685,1749274238204,-690.50777326,0.00019448,2]
[364846687,1749274238214,-468.92,0.00019591,2]
[364846689,1749274238225,-668.73,0.00019591,2]
[364846691,1749274238235,-406.77,0.00019591,2]
[364846693,1749274238245,-440.0,0.00019591,2]
[364846695,1749274238254,-440.0,0.00019591,2]
[364846697,1749274238263,-440.0,0.00019591,2]
[364846699,1749274238273,-440.0,0.00019591,2]
[364846700,1749274238282,-440.0,0.00019591,2]
[364846702,1749274238292,-440.0,0.00019591,2]
[364846705,1749274238302,-440.0,0.00019591,2]
[364846706,1749274238311,-440.0,0.00019591,2]
[364846708,1749274238321,-430.0,0.00019591,2]
[364846711,1749274238331,-440.0,0.00019591,2]
[364846712,1749274238340,-440.0,0.00019591,2]
[364846714,1749274238350,-794.03,0.00019591,2]
[364846717,1749274238360,-532.66,0.00019591,2]
[364846718,1749274238370,-440.0,0.00019591,2]
[364846720,1749274238379,-1834.07,0.00019591,2]
[364846722,1749274238388,-440.0,0.00019591,2]
[364846724,1749274238397,-440.0,0.00019591,2]
[364846726,1749274238407,-440.0,0.00019591,2]
[364846728,1749274238417,-440.0,0.00019591,2]
[364846730,1749274238427,-440.0,0.00019593,2]
[364846732,1749274238437,-440.0,0.00019593,2]
[364846734,1749274238446,-440.0,0.00019593,2]
[364846736,1749274238456,-440.0,0.00019593,2]
[364846738,1749274238466,-245.94030839,0.000198,2]
[364846740,1749274238476,-440.0,0.00019864,2]
[364846742,1749274238485,-440.0,0.00019865,2]
[364846744,1749274238497,-579.4501952,0.00019865,2]
[364846746,1749274238508,-439.4364531,0.00019865,2]
[364846748,1749274238517,-468.92,0.00019865,2]
[364846750,1749274238526,-440.0,0.00019865,2]
[364846751,1749274238536,-440.0,0.00019865,2]
[364846753,1749274238546,-668.73,0.00019865,2]
[364846755,1749274238555,-440.0,0.00019865,2]
[364846757,1749274238564,-251.42,0.00019865,2]
[364846758,1749274238575,-440.0,0.00019865,2]
[364846760,1749274238589,-440.0,0.00019865,2]
[364846762,1749274238599,-440.0,0.00019865,2]
[364846778,1749274238755,-440.0,0.00019865,2]
[364846780,1749274238765,-1202.5,0.00019865,2]
[364846782,1749274238775,-420.0,0.00019865,2]
[364846784,1749274238785,-440.0,0.00019865,2]
[364846786,1749274238795,-440.0,0.00019865,2]
[364846788,1749274238804,-400.0,0.00019865,2]
[364846790,1749274238813,-462.28,0.00019865,2]
[364846792,1749274238823,-440.0,0.00019865,2]
[364846794,1749274238833,-794.03,0.00019865,2]
[364846796,1749274238842,-532.66,0.00019865,2]
[364846798,1749274238851,-440.0,0.00019865,2]
[364846800,1749274238861,-440.0,0.00019865,2]
[364846802,1749274238870,-440.0,0.00019865,2]
[364846804,1749274238879,-440.0,0.00019865,2]
[364846806,1749274238889,-440.0,0.00019865,2]
[364846808,1749274238899,-1834.07,0.00019866,2]
[364846810,1749274238908,-440.0,0.00019867,2]
[364846811,1749274238918,-440.0,0.00019867,2]
[364846813,1749274238928,-4000.0,0.0002,2]
[364846815,1749274238938,-502.73135706,0.0002,2]
[364846817,1749274238948,-191.75462396,0.0002,2]
[364846819,1749274238957,-6310.44224487,0.0002,2]
[364846821,1749274238967,-1182.96355587,0.0002,2]
[364846823,1749274238977,-360.22281976,0.0002,2]
[364846825,1749274238988,-23765.85952362,0.0002,2]
[364846827,1749274238997,-500.0,0.00020052,2]
[364846829,1749274239007,-3656.39,0.000201,2]
[364846831,1749274239017,-440.0,0.00020138,2]
[364846832,1749274239026,-440.0,0.00020139,2]
[364846834,1749274239036,-468.92,0.00020139,2]
[364846836,1749274239046,-440.0,0.00020139,2]
[364846838,1749274239056,-440.0,0.00020139,2]
[364846840,1749274239066,-668.73,0.00020139,2]
[364846842,1749274239076,-440.0,0.00020139,2]
[364846844,1749274239085,-440.0,0.00020139,2]
[364846846,1749274239094,-313.27109437,0.00020139,2]
[364846848,1749274239104,-440.0,0.00020139,2]
[364846850,1749274239114,-440.0,0.00020139,2]
[364846852,1749274239124,-1202.5,0.00020139,2]
[364846854,1749274239134,-440.0,0.00020139,2]
[364846856,1749274239144,-462.28,0.00020139,2]
[364846858,1749274239154,-440.0,0.00020139,2]
[364846860,1749274239163,-794.03,0.00020139,2]
[364846861,1749274239173,-532.66,0.00020139,2]
[364846863,1749274239183,-440.0,0.00020139,2]
[364846865,1749274239193,-440.0,0.00020139,2]
[364846867,1749274239203,-440.0,0.00020139,2]
[364846869,1749274239212,-440.0,0.00020139,2]
[364846871,1749274239222,-440.0,0.00020139,2]
[364846873,1749274239231,-440.0,0.00020141,2]
[364846875,1749274239241,-440.0,0.00020141,2]
[364846877,1749274239251,-834.52263295,0.00020169,2]
[364846878,1749274239260,-178.90431822,0.00020173,2]
[364846880,1749274239270,-201.433,0.00020173,2]
[364846882,1749274239280,-163.174386,0.00020187,2]
[364846884,1749274239289,-301.84762061,0.00020401,2]
[364846886,1749274239298,-1834.07,0.00020411,2]
[364846888,1749274239308,-410.0,0.00020412,2]
[364846890,1749274239317,-188.27017512,0.00020412,2]
[364846892,1749274239327,-997.154499,0.00020413,2]
[364846894,1749274239337,-440.0,0.00020413,2]
[364846897,1749274239357,-468.92,0.00020413,2]
[364846899,1749274239370,-440.0,0.00020413,2]
[364846901,1749274239381,-668.73,0.00020413,2]
[364846903,1749274239391,-440.0,0.00020413,2]
[364846904,1749274239401,-440.0,0.00020413,2]
[364846906,1749274239412,-440.0,0.00020413,2]
[364846908,1749274239423,-440.0,0.00020413,2]
[364846910,1749274239433,-1202.5,0.00020413,2]
[364846912,1749274239443,-440.0,0.00020413,2]
[364846914,1749274239453,-155.0,0.00020413,2]
[364846916,1749274239464,-462.28,0.00020413,2]
[364846918,1749274239474,-440.0,0.00020413,2]
[364846920,1749274239486,-794.03,0.00020413,2]
[364846922,1749274239496,-532.66,0.00020413,2]
[364846924,1749274239507,-440.0,0.00020413,2]
[364846926,1749274239516,-440.0,0.00020413,2]
[364846928,1749274239527,-440.0,0.00020413,2]
[364846930,1749274239538,-440.0,0.00020413,2]
[364846932,1749274239548,-440.0,0.00020413,2]
[364846934,1749274239558,-440.0,0.00020415,2]
[364846936,1749274239568,-440.0,0.00020415,2]
[364846937,1749274239579,-296.74740171,0.00020457,2]
[364846939,1749274239592,-245.94030836,0.00020472,2]
[364846941,1749274239603,-358.81,0.000205,14]
[364846943,1749274239612,-187.18641222,0.00020548,2]
[364846945,1749274239624,-500.0,0.00020548,2]
[364846947,1749274239633,-1834.07,0.00020686,2]
[364846949,1749274239643,-440.0,0.00020687,2]
[364846951,1749274239655,-468.92,0.00020687,2]
[364846953,1749274239664,-440.0,0.00020687,2]
[364846955,1749274239674,-668.73,0.00020687,2]
[364846957,1749274239684,-440.0,0.00020687,2]
[364846959,1749274239694,-440.0,0.00020687,2]
[364846961,1749274239704,-440.0,0.00020687,2]
[364846962,1749274239714,-440.0,0.00020687,2]
[364846965,1749274239724,-1202.5,0.00020687,2]
[364846966,1749274239734,-163.37360691,0.00020687,2]
[364846968,1749274239744,-462.28,0.00020687,2]
[364846970,1749274239754,-440.0,0.00020687,2]
[364846972,1749274239764,-18.92311492,0.00020687,2]
[364846975,1749274239779,-685.88,0.00020687,2]
[364847017,1749274240521,-89.22688508,0.00020687,2]
[364847019,1749274240532,-532.66,0.00020687,2]
[364847021,1749274240541,-120.25996135,0.00020687,2]
[364847300,1749274243279,-440.0,0.00019591,2]
[364847302,1749274243290,-440.0,0.00019865,2]
[364847304,1749274243300,-440.0,0.00020139,2]
[364847306,1749274243311,-57.70718964,0.00020413,2]
[364847310,1749274243337,-382.29281036,0.00020413,2]
[364847312,1749274243348,-319.74003865,0.00020687,2]
[364847314,1749274243357,-440.0,0.00020687,2]
[364847316,1749274243367,-440.0,0.00020687,2]
[364847318,1749274243376,-440.0,0.00020687,2]
[364847320,1749274243386,-440.0,0.00020687,2]
[364847322,1749274243396,-440.0,0.00020687,2]
[364847324,1749274243406,-440.0,0.00020689,2]
[364847326,1749274243417,-440.0,0.00020689,2]
[364847328,1749274243426,-358.81,0.000207,14]
[364847330,1749274243436,-803.73412717,0.000209,4]
[364847332,1749274243447,-440.0,0.00020961,2]
[364847334,1749274243457,-440.0,0.00020961,2]
[364847336,1749274243467,-668.73,0.00020961,2]
[364847338,1749274243476,-440.0,0.00020961,2]
[364847340,1749274243487,-440.0,0.00020961,2]
[364847342,1749274243496,-440.0,0.00020961,2]
[364847345,1749274243506,-440.0,0.00020961,2]
[364847346,1749274243515,-1202.5,0.00020961,2]
[364847349,1749274243526,-462.28,0.00020961,2]
[364847351,1749274243536,-440.0,0.00020961,2]
[364847353,1749274243546,-794.03,0.00020961,2]
[364847355,1749274243557,-532.66,0.00020961,2]
[364847357,1749274243566,-575.84,0.00020961,2]
[364847360,1749274243577,-180.04,0.00020961,2]
[364847362,1749274243590,-440.0,0.00020961,2]
[364847364,1749274243600,-440.0,0.00020961,2]
[364847366,1749274243610,-440.0,0.00020961,2]
[364847368,1749274243620,-440.0,0.00020961,2]
[364847370,1749274243631,-407.72511344,0.00020963,2]
[364847372,1749274243641,-440.0,0.00020963,2]
[364847374,1749274243651,-358.81,0.00021,14]
[364847376,1749274243662,-546.81,0.00021,2]
[364847378,1749274243672,-803.73412704,0.00021038,4]
[364847380,1749274243683,-207.0,0.00021068,3]
[364847382,1749274243694,-1834.07,0.00021106,2]
[364847384,1749274243704,-245.94030836,0.00021143,2]
[364847386,1749274243714,-500.0,0.00021148,2]
[364847388,1749274243724,-803.73412704,0.00021176,4]
[364847390,1749274243734,-420.0,0.00021187,2]
[364847392,1749274243744,-358.81,0.000212,14]
[364847394,1749274243754,-253.35698224,0.00021235,2]
[364847396,1749274243763,-440.0,0.00021235,2]
[364847398,1749274243773,-668.73,0.00021235,2]
[364847400,1749274243782,-440.0,0.00021235,2]
[364847402,1749274243792,-440.0,0.00021235,2]
[364847404,1749274243802,-440.0,0.00021235,2]
[364847406,1749274243811,-440.0,0.00021235,2]
[364847408,1749274243823,-1202.5,0.00021235,2]
[364847410,1749274243833,-462.28,0.00021235,2]
[364847412,1749274243843,-440.0,0.00021235,2]
[364847414,1749274243853,-794.03,0.00021235,2]
[364847416,1749274243863,-532.66,0.00021235,2]
[364847419,1749274243873,-440.0,0.00021235,2]
[364847421,1749274243885,-440.0,0.00021235,2]
[364847423,1749274243895,-440.0,0.00021235,2]
[364847425,1749274243904,-440.0,0.00021235,2]
[364847427,1749274243913,-440.0,0.00021237,2]
[364847429,1749274243923,-3016.86,0.00021296,2]
[364847431,1749274243933,-803.73412704,0.00021314,5]
[364847433,1749274243942,-803.73412704,0.00021452,5]
[364847435,1749274243951,-358.81,0.000215,14]
[364847437,1749274243961,-1834.07,0.00021508,2]
[364847439,1749274243970,-440.0,0.00021509,2]
[364847441,1749274243980,-668.73,0.00021509,2]
[364847443,1749274243990,-440.0,0.00021509,2]
[364847445,1749274244000,-440.0,0.00021509,2]
[364847447,1749274244009,-440.0,0.00021509,2]
[364847449,1749274244019,-440.0,0.00021509,2]
[364847451,1749274244029,-1202.5,0.00021509,2]
[364847453,1749274244038,-462.28,0.00021509,2]
[364847455,1749274244048,-440.0,0.00021509,2]
[364847457,1749274244057,-794.03,0.00021509,2]
[364847459,1749274244067,-532.66,0.00021509,2]
[364847461,1749274244077,-440.0,0.00021509,2]
[364847464,1749274244086,-440.0,0.00021509,2]
[364847467,1749274244095,-440.0,0.00021509,2]
[364847469,1749274244105,-440.0,0.00021511,2]
[364847471,1749274244114,-803.73412704,0.0002159,5]
[364847473,1749274244123,-803.73412704,0.00021728,5]
[364847475,1749274244133,-160.0,0.00021765,3]
[364847477,1749274244142,-440.0,0.00021783,2]
[364847479,1749274244152,-668.73,0.00021783,2]
[364847481,1749274244163,-440.0,0.00021783,2]
[364847483,1749274244172,-440.0,0.00021783,2]
[364847485,1749274244182,-440.0,0.00021783,2]
[364847487,1749274244191,-440.0,0.00021783,2]
[364847489,1749274244201,-1202.5,0.00021783,2]
[364847491,1749274244211,-462.28,0.00021783,2]
[364847493,1749274244221,-440.0,0.00021783,2]
[364847495,1749274244231,-794.03,0.00021783,2]
[364847497,1749274244240,-532.66,0.00021783,2]
[364847499,1749274244250,-440.0,0.00021783,2]
[364847501,1749274244259,-440.0,0.00021783,2]
[364847503,1749274244269,-440.0,0.00021783,2]
[364847506,1749274244279,-440.0,0.00021785,2]
[364847508,1749274244289,-358.81,0.000218,14]
[364847510,1749274244298,-245.94030836,0.00021815,2]
[364847512,1749274244308,-301.31518669,0.00021828,2]
[364847514,1749274244317,-803.73412704,0.00021866,6]
[364847516,1749274244327,-150.0,0.000219,2]
[364847518,1749274244337,-258.62900689,0.00021903,2]
[364847520,1749274244346,-400.0,0.00021917,2]
[364847522,1749274244356,-400.0,0.00021917,2]
[364847524,1749274244365,-400.0,0.00021917,2]
[364847526,1749274244375,-400.0,0.00021917,2]
[364847528,1749274244384,-400.0,0.00021917,2]
[364847530,1749274244395,-500.0,0.00021917,2]
[364847532,1749274244406,-500.0,0.00021917,2]
[364847534,1749274244415,-1834.07,0.00021968,2]
[364847536,1749274244425,-405.0,0.00021985,2]
[364847538,1749274244435,-358.81,0.00022,14]
[364847540,1749274244445,-100000.39877267,0.00022,2]
[364847542,1749274244455,-203.83567907,0.00022003,30]
[364847544,1749274244464,-803.73412704,0.00022003,6]
[364847546,1749274244474,-525.38,0.00022047,3]
[364847548,1749274244483,-262.69,0.00022047,3]
[364847551,1749274244493,-788.11,0.00022047,3]
[364847553,1749274244503,-440.0,0.00022057,2]
[364847555,1749274244512,-668.73,0.00022057,2]
[364847557,1749274244522,-440.0,0.00022057,2]
[364847559,1749274244532,-440.0,0.00022057,2]
[364847561,1749274244542,-440.0,0.00022057,2]
[364847563,1749274244552,-440.0,0.00022057,2]
[364847565,1749274244561,-1202.5,0.00022057,2]
[364847567,1749274244571,-462.28,0.00022057,2]
[364847569,1749274244581,-440.0,0.00022057,2]
[364847571,1749274244594,-794.03,0.00022057,2]
[364847573,1749274244603,-532.66,0.00022057,2]
[364847575,1749274244612,-440.0,0.00022057,2]
[364847577,1749274244622,-440.0,0.00022057,2]
[364847579,1749274244632,-440.0,0.00022057,2]
[364847581,1749274244642,-440.0,0.00022059,2]
[364847583,1749274244652,-1834.07,0.00022127,2]
[364847585,1749274244661,-500.0,0.00022127,2]
[364847587,1749274244671,-500.0,0.00022127,2]
[364847589,1749274244680,-500.67080605,0.00022127,2]
[364847591,1749274244690,-500.0,0.00022127,2]
[364847593,1749274244699,-500.0,0.00022133,2]
[364847595,1749274244708,-500.0,0.00022133,2]
[364847597,1749274244718,-575.86209951,0.00022133,2]
[364847599,1749274244728,-803.73412704,0.00022141,6]
[364847601,1749274244737,-1834.07,0.00022173,2]
[364847603,1749274244747,-151.3354925,0.00022174,2]
[364847605,1749274244757,-500.0,0.00022174,2]
[364847607,1749274244766,-500.0,0.00022174,2]
[364847609,1749274244776,-153.06190237,0.00022174,2]
[364847611,1749274244785,-207.4,0.00022174,2]
[364847614,1749274244795,-500.0,0.00022174,2]
[364847615,1749274244805,-500.0,0.00022174,2]
[364847617,1749274244815,-500.0,0.00022174,2]
[364847619,1749274244826,-500.0,0.00022174,2]
[364847622,1749274244835,-500.0,0.00022174,2]
[364847624,1749274244845,-514.26776168,0.00022174,2]
[364847625,1749274244856,-500.0,0.00022174,2]
[364847627,1749274244869,-5000.0,0.00022174,2]
[364847629,1749274244879,-500.0,0.00022174,2]
[364847632,1749274244888,-500.0,0.00022174,2]
[364847633,1749274244897,-286.50857892,0.00022174,2]
[364847648,1749274245027,-500.0,0.00022174,2]
[364847651,1749274245037,-500.0,0.00022174,2]
[364847653,1749274245047,-500.0,0.00022174,2]
[364847655,1749274245056,-500.0,0.00022174,2]
[364847657,1749274245066,-500.0,0.00022174,2]
[364847659,1749274245075,-500.0,0.00022174,2]
[364847661,1749274245085,-500.0,0.00022174,2]
[364847663,1749274245094,-500.0,0.00022174,2]
[364847665,1749274245103,-500.0,0.00022174,2]
[364847667,1749274245113,-500.0,0.00022174,2]
[364847669,1749274245123,-502.76889791,0.00022211,2]
[364847671,1749274245132,-500.0,0.00022211,2]
[364847673,1749274245142,-500.0,0.00022211,2]
[364847675,1749274245152,-500.0,0.00022211,2]
[364847677,1749274245161,-500.0,0.00022211,2]
[364847679,1749274245171,-500.0,0.00022244,2]
[364847681,1749274245181,-803.73412704,0.00022279,6]
[364847683,1749274245191,-358.81,0.000223,14]
[364847685,1749274245201,-502.58086597,0.000223,2]
[364847687,1749274245211,-440.0,0.00022331,2]
[364847689,1749274245222,-668.73,0.00022331,2]
[364847691,1749274245231,-440.0,0.00022331,2]
[364847693,1749274245241,-440.0,0.00022331,2]